fUSD/lending_fUSD_20240712
["ID","MTS","AMOUNT","RATE_DAILY","PERIOD"]
[331782363,1720761068265,-619.41,0.00013893,2]
[331782364,1720761068274,-500.0,0.00013893,2]
[331782365,1720761068284,-500.0,0.00013893,2]
[331782366,1720761068295,-500.0,0.00013893,2]
[331782367,1720761068304,-500.0,0.00013893,2]
[331782368,1720761068314,-500.0,0.00013893,2]
[331782369,1720761068323,-500.0,0.00013893,2]
[331782370,1720761068333,-489.86717592,0.00013893,2]
[331782371,1720761068343,-500.0,0.00013893,2]
[331782372,1720761068352,-841.41,0.00013893,2]
[331782373,1720761068362,-500.0,0.00013893,2]
[331782374,1720761068371,-500.0,0.00013893,2]
[331782375,1720761068381,-500.0,0.00013893,2]
[331782376,1720761068391,-716.0,0.00013893,2]
[331782377,1720761068401,-728.08,0.00013893,2]
[331782378,1720761068410,-632.05,0.00013893,2]
[331782379,1720761068420,-992.89,0.00013893,2]
[331782380,1720761068430,-516.25,0.00013893,2]
[331782381,1720761068440,-699.92,0.00013893,2]
[331782382,1720761068449,-500.0,0.00013893,2]
[331782383,1720761068458,-500.0,0.00013893,2]
[331782384,1720761068468,-500.0,0.00013893,2]
[331782385,1720761068480,-500.0,0.00013893,2]
[331782386,1720761068490,-500.0,0.00013893,2]
[331782387,1720761068499,-1485.03,0.00013893,2]
[331782388,1720761068510,-500.0,0.00013893,2]
[331782389,1720761068531,-500.0,0.00013893,2]
[331782390,1720761068541,-500.0,0.00013893,2]
[331782391,1720761068551,-500.0,0.00013893,2]
[331782392,1720761068861,-221.6737319,0.00013893,2]
[331782393,1720761068873,-500.0,0.00013893,2]
[331782394,1720761068883,-500.0,0.00013893,2]
[331782395,1720761068892,-590.79,0.00013893,2]
[331782396,1720761068902,-500.0,0.00013893,2]
[331782397,1720761068911,-417.8,0.00013893,2]
[331782398,1720761068920,-500.0,0.00013893,2]
[331782399,1720761068930,-500.0,0.00013893,2]
[331782400,1720761068939,-907.39,0.00013893,2]
[331782401,1720761068949,-500.0,0.00013893,2]
[331782402,1720761068958,-500.0,0.00013893,2]
[331782403,1720761068967,-500.0,0.00013893,2]
[331782404,1720761068977,-500.0,0.00013893,2]
[331782405,1720761068986,-257.22613352,0.00013893,2]
[331782406,1720761068995,-500.0,0.00013893,2]
[331782407,1720761069005,-500.0,0.00013893,2]
[331782408,1720761069015,-1099.57,0.00013893,2]
[331782409,1720761069027,-500.0,0.00013893,2]
[331782410,1720761069036,-500.0,0.00013893,2]
[331782411,1720761069046,-986.5,0.00013893,2]
[331782412,1720761069055,-500.0,0.00013893,2]
[331782413,1720761069066,-621.44,0.00013893,2]
[331782414,1720761069075,-500.0,0.00013893,2]
[331782415,1720761069084,-500.0,0.00013893,2]
[331782416,1720761069094,-500.0,0.00013893,2]
[331782417,1720761069103,-500.0,0.00013893,2]
[331782418,1720761069112,-1702.18,0.00013893,2]
[331782419,1720761069122,-605.57,0.00013893,2]
[331782420,1720761069130,-500.0,0.00013893,2]
[331782421,1720761069139,-500.0,0.00013893,2]
[331782422,1720761069148,-500.0,0.00013893,2]
[331782423,1720761069157,-543.40130063,0.00013893,2]
[331782424,1720761069166,-500.0,0.00013893,2]
[331782425,1720761069175,-1390.03,0.00013893,2]
[331782426,1720761069184,-589.82,0.00013893,2]
[331782427,1720761069193,-500.0,0.00013893,2]
[331782428,1720761069202,-500.0,0.00013893,2]
[331782429,1720761069211,-1088.49,0.00013893,2]
[331782430,1720761069219,-500.0,0.00013893,2]
[331782431,1720761069228,-500.0,0.00013893,2]
[331782432,1720761069238,-1874.14,0.00013893,2]
[331782433,1720761069247,-580.84,0.00013893,2]
[331782434,1720761069256,-500.0,0.00013893,2]
[331782435,1720761069266,-665.95,0.00013893,2]
[331782436,1720761069275,-500.0,0.00013893,2]
[331782437,1720761069285,-500.0,0.00013893,2]
[331782438,1720761069294,-500.0,0.00013893,2]
[331782439,1720761069303,-790.88,0.00013893,2]
[331782440,1720761069312,-500.0,0.00013893,2]
[331782441,1720761069321,-500.0,0.00013893,2]
[331782442,1720761069330,-500.0,0.00013893,2]
[331782443,1720761069339,-214.51128806,0.00013893,2]
[331782444,1720761069348,-500.0,0.00013893,2]
[331782445,1720761069357,-500.0,0.00013893,2]
[331782446,1720761069366,-500.0,0.00013893,2]
[331782447,1720761069375,-724.1,0.00013893,2]
[331782448,1720761069384,-500.0,0.00013893,2]
[331782449,1720761069393,-500.0,0.00013893,2]
[331782450,1720761069402,-500.0,0.00013893,2]
[331782451,1720761069411,-500.0,0.00013893,2]
[331782452,1720761069421,-500.0,0.00013893,2]
[331782453,1720761069430,-500.0,0.00013893,2]
[331782454,1720761069439,-500.0,0.00013893,2]
[331782455,1720761069449,-500.0,0.00013893,2]
[331782456,1720761069458,-500.0,0.00013893,2]
[331782457,1720761069467,-500.0,0.00013893,2]
[331782458,1720761069477,-500.0,0.00013893,2]
[331782459,1720761069486,-631.85,0.00013893,2]
[331782460,1720761069495,-500.0,0.00013893,2]
[331782461,1720761069504,-500.0,0.00013893,2]
[331782462,1720761069513,-500.0,0.00013893,2]
[331782463,1720761069522,-500.0,0.00013893,2]
[331782464,1720761069531,-500.0,0.00013893,2]
[331782465,1720761069545,-500.0,0.00013893,2]
[331782466,1720761069555,-500.0,0.00013893,2]
[331782467,1720761069565,-682.34,0.00013893,2]
[331782468,1720761069575,-1040.74,0.00013893,2]
[331782469,1720761069584,-500.0,0.00013893,2]
[331782470,1720761069594,-500.0,0.00013893,2]
[331782471,1720761069604,-500.0,0.00013893,2]
[331782472,1720761069613,-500.0,0.00013893,2]
[331782473,1720761069623,-405.54,0.00013893,2]
[331782474,1720761069633,-500.0,0.00013893,2]
[331782475,1720761069642,-500.0,0.00013893,2]
[331782476,1720761069652,-1112.59,0.00013893,2]
[331782477,1720761069661,-500.0,0.00013893,2]
[331782478,1720761069671,-500.0,0.00013893,2]
[331782479,1720761069680,-647.8,0.00013893,2]
[331782480,1720761069689,-500.0,0.00013893,2]
[331782481,1720761069699,-500.0,0.00013893,2]
[331782482,1720761069709,-500.0,0.00013893,2]
[331782483,1720761069718,-500.0,0.00013893,2]
[331782484,1720761069727,-500.0,0.00013893,2]
[331782485,1720761069737,-500.0,0.00013893,2]
[331782486,1720761069747,-500.0,0.00013893,2]
[331782487,1720761069756,-500.0,0.00013893,2]
[331782488,1720761069766,-500.0,0.00013893,2]
[331782489,1720761069776,-500.0,0.00013893,2]
[331782490,1720761069785,-500.0,0.00013893,2]
[331782491,1720761069794,-1064.8,0.00013893,2]
[331782492,1720761069804,-500.0,0.00013893,2]
[331782493,1720761069814,-500.0,0.00013893,2]
[331782494,1720761069823,-1502.93,0.00013893,2]
[331782495,1720761069833,-500.0,0.00013893,2]
[331782496,1720761069842,-911.93,0.00013893,2]
[331782497,1720761069852,-684.24,0.00013893,2]
[331782498,1720761069861,-500.0,0.00013893,2]
[331782499,1720761069871,-1049.1,0.00013893,2]
[331782500,1720761069880,-500.0,0.00013893,2]
[331782501,1720761069890,-638.68837165,0.00013893,2]
[331782502,1720761069900,-500.0,0.00013893,2]
[331782503,1720761069909,-536.52,0.00013893,2]
[331782504,1720761069918,-189.92,0.00013893,2]
[331782505,1720761069928,-500.0,0.00013893,2]
[331782506,1720761069938,-744.67,0.00013893,2]
[331782507,1720761069949,-620.89,0.00013893,2]
[331782508,1720761069959,-500.0,0.00013893,2]
[331782509,1720761069969,-500.0,0.00013893,2]
[331782510,1720761069979,-500.0,0.00013893,2]
[331782511,1720761069989,-500.0,0.00013893,2]
[331782512,1720761069998,-1214.08,0.00013893,2]
[331782513,1720761070008,-500.0,0.00013893,2]
[331782514,1720761070018,-500.0,0.00013893,2]
[331782515,1720761070028,-500.0,0.00013893,2]
[331782516,1720761070038,-500.0,0.00013893,2]
[331782517,1720761070048,-500.0,0.00013893,2]
[331782518,1720761070059,-500.0,0.00013893,2]
[331782519,1720761070068,-500.0,0.00013893,2]
[331782520,1720761070078,-726.88,0.00013893,2]
[331782521,1720761070088,-500.0,0.00013893,2]
[331782522,1720761070098,-1201.18,0.00013893,2]
[331782523,1720761070108,-500.0,0.00013893,2]
[331782524,1720761070117,-500.0,0.00013893,2]
[331782525,1720761070127,-500.0,0.00013893,2]
[331782526,1720761070137,-584.7,0.00013893,2]
[331782527,1720761070146,-500.0,0.00013893,2]
[331782528,1720761070156,-500.0,0.00013893,2]
[331782529,1720761070166,-771.55,0.00013893,2]
[331782530,1720761070175,-500.0,0.00013893,2]
[331782531,1720761070185,-500.0,0.00013893,2]
[331782532,1720761070195,-844.22,0.00013893,2]
[331782533,1720761070205,-500.0,0.00013893,2]
[331782534,1720761070215,-505.12,0.00013893,2]
[331782535,1720761070224,-500.0,0.00013893,2]
[331782536,1720761070234,-500.0,0.00013893,2]
[331782537,1720761070243,-642.68,0.00013893,2]
[331782538,1720761070253,-500.0,0.00013893,2]
[331782539,1720761070262,-500.0,0.00013893,2]
[331782540,1720761070272,-912.12,0.00013893,2]
[331782541,1720761070281,-617.44,0.00013893,2]
[331782542,1720761070291,-500.0,0.00013893,2]
[331782543,1720761070300,-500.0,0.00013893,2]
[331782544,1720761070310,-500.0,0.00013893,2]
[331782545,1720761070319,-500.0,0.00013893,2]
[331782546,1720761070329,-500.0,0.00013893,2]
[331782547,1720761070339,-733.47,0.00013893,2]
[331782548,1720761070348,-1677.73,0.00013893,2]
[331782549,1720761070358,-840.65,0.00013893,2]
[331782550,1720761070367,-500.0,0.00013893,2]
[331782551,1720761070383,-500.0,0.00013893,2]
[331782552,1720761070393,-727.04,0.00013893,2]
[331782553,1720761070403,-500.0,0.00013893,2]
[331782554,1720761070413,-774.71,0.00013893,2]
[331782555,1720761070422,-1049.25,0.00013893,2]
[331782556,1720761070432,-500.0,0.00013893,2]
[331782557,1720761070443,-1558.88,0.00013893,2]
[331782558,1720761070452,-500.0,0.00013893,2]
[331782559,1720761070462,-500.0,0.00013893,2]
[331782560,1720761070471,-500.0,0.00013893,2]
[331782561,1720761070481,-500.0,0.00013893,2]
[331782562,1720761070490,-928.62,0.00013893,2]
[331782563,1720761070499,-305.56581273,0.00013893,2]
[331782564,1720761070525,-187.72419693,0.00013893,2]
[331782565,1720761070534,-500.0,0.00013893,2]
[331782566,1720761070544,-500.0,0.00013893,2]
[331782567,1720761070553,-584.25,0.00013893,2]
[331782568,1720761070562,-500.0,0.00013893,2]
[331782569,1720761070571,-693.9,0.00013893,2]
[331782570,1720761070581,-1196.7,0.00013893,2]
[331782571,1720761070591,-500.0,0.00013893,2]
[331782572,1720761070600,-500.0,0.00013893,2]
[331782573,1720761070609,-500.0,0.00013893,2]
[331782574,1720761070619,-500.0,0.00013893,2]
[331782575,1720761070629,-695.2,0.00013893,2]
[331782576,1720761070639,-1175.79,0.00013893,2]
[331782577,1720761070650,-668.26,0.00013893,2]
[331782578,1720761070660,-500.0,0.00013893,2]
[331782579,1720761070670,-608.4,0.00013893,2]
[331782580,1720761070680,-500.0,0.00013893,2]
[331782581,1720761070690,-500.0,0.00013893,2]
[331782582,1720761070699,-500.0,0.00013893,2]
[331782583,1720761070708,-454.55534059,0.00013893,2]
[331782584,1720761070740,-905.72771757,0.00013893,2]
[331782585,1720761070751,-15.07694184,0.00013893,2]
[331782586,1720761070761,-500.0,0.00013893,2]
[331782587,1720761070771,-66.40304551,0.00013893,2]
[331782588,1720761074772,500.0,9.102e-05,2]
[331782589,1720761161957,188.88551194,0.00011199,2]
[331782590,1720761177566,3159.09131155,0.00011033,2]
[331782591,1720761177596,3165.1814966,0.00011033,2]
[331782592,1720761177627,3418.4985903,0.00011033,2]
[331782593,1720761177654,194173.61925808,0.00011033,2]
[331782595,1720761331498,2141.63460873,0.00011199,2]
[331782596,1720761378871,179.17,0.00010959,2]
[331782597,1720761449725,350.23,0.00010877,2]
[331782598,1720761492322,295.48,0.00010959,2]
[331782600,1720761512262,249.26221779,0.00010877,2]
[331782601,1720761539020,542.7684969,0.00010877,2]
[331782602,1720761561535,695.6112934,0.00011199,2]
[331782604,1720761596204,291.1,0.00010959,2]
[331782606,1720761672101,310.60390797,0.00010959,2]
[331782607,1720761691945,155.0,0.00011199,2]
[331782611,1720761799698,155.6671093,0.00011199,2]
[331782612,1720761872261,155.0,0.00011199,2]
[331782613,1720761886817,254.9185507,0.00011199,2]
[331782616,1720762077527,2550.0,0.00011199,2]
[331782619,1720762136616,-489.30737314,0.00011848,2]
[331782620,1720762136644,-300.0,0.00011947,2]
[331782621,1720762136669,-23900.0,0.00011948,2]
[331782622,1720762136693,-902.62,0.00011994,2]
[331782623,1720762136717,-307.15,0.00011998,2]
[331782624,1720762136743,-7094.56574878,0.00011998,2]
[331782625,1720762136768,-307.15,0.00012001,2]
[331782626,1720762136795,-307.15,0.00012004,2]
[331782627,1720762136820,-307.15,0.00012008,2]
[331782628,1720762136846,-307.15,0.00012011,2]
[331782629,1720762136871,-250.0,0.00012013,2]
[331782630,1720762136895,-307.15,0.00012014,2]
[331782631,1720762136920,-800.0,0.00012015,2]
[331782632,1720762136944,-307.15,0.00012017,2]
[331782633,1720762136969,-307.15,0.0001202,2]
[331782634,1720762136993,-307.15,0.00012023,2]
[331782635,1720762137019,-307.15,0.00012026,2]
[331782636,1720762137043,-307.15,0.0001203,2]
[331782637,1720762137068,-307.15,0.00012033,2]
[331782638,1720762137093,-307.15,0.00012036,2]
[331782639,1720762137119,-307.15,0.00012039,2]
[331782640,1720762137144,-307.15,0.00012042,2]
[331782641,1720762137169,-307.15,0.00012045,2]
[331782642,1720762137195,-181.5,0.00012048,2]
[331782643,1720762137219,-307.15,0.00012048,2]
[331782644,1720762137244,-307.15,0.00012052,2]
[331782645,1720762137270,-307.15,0.00012055,2]
[331782646,1720762137295,-307.15,0.00012058,2]
[331782647,1720762137319,-5159.8905,0.00012202,2]
[331782648,1720762137351,-213.34291915,0.00012314,2]
[331782649,1720762137383,-475.98032119,0.00012314,2]
[331782650,1720762137407,-621.28,0.0001269,2]
[331782651,1720762137429,-468.18,0.0001269,2]
[331782652,1720762137453,-499.99,0.0001269,2]
[331782653,1720762137477,-621.28,0.00012693,2]
[331782654,1720762137502,-621.28,0.00012697,2]
[331782655,1720762137526,-621.28,0.000127,2]
[331782656,1720762137550,-621.28,0.00012703,2]
[331782657,1720762137573,-621.28,0.00012707,2]
[331782658,1720762137597,-621.28,0.0001271,2]
[331782659,1720762137621,-621.28,0.00012713,2]
[331782660,1720762137645,-621.28,0.00012717,2]
[331782661,1720762137669,-621.28,0.0001272,2]
[331782662,1720762137693,-621.28,0.00012723,2]
[331782663,1720762137717,-621.28,0.00012727,2]
[331782664,1720762137742,-621.28,0.0001273,2]
[331782665,1720762137767,-621.28,0.00012733,2]
[331782666,1720762137791,-621.28,0.00012737,2]
[331782667,1720762137815,-621.28,0.0001274,2]
[331782668,1720762137839,-621.28,0.00012743,2]
[331782669,1720762137863,-621.28,0.00012747,2]
[331782670,1720762137887,-621.28,0.0001275,2]
[331782671,1720762137911,-845.154,0.0001275,2]
[331782672,1720762137935,-621.28,0.00012753,2]
[331782673,1720762137959,-167.68,0.00012808,2]
[331782674,1720762137983,-200.0,0.00012818,2]
[331782675,1720762138008,-2016.99,0.00012863,2]
[331782676,1720762138033,-182.56,0.00012872,2]
[331782677,1720762138057,-2141.63460873,0.00013128,2]
[331782678,1720762138081,-155.0,0.00013128,2]
[331782679,1720762138105,-1042.37546399,0.00013128,2]
[331782680,1720762138129,-350.23,0.00013141,2]
[331782681,1720762138153,-174.95,0.00013241,2]
[331782682,1720762138177,-197.8989823,0.00013496,2]
[331782683,1720762138201,-298.92027799,0.00013516,2]
[331782684,1720762138225,-800.0,0.00013517,2]
[331782685,1720762138249,-319.28013051,0.00013543,2]
[331782686,1720762138273,-264.7511771,0.00013543,2]
[331782687,1720762138297,-242.7045,0.00013583,2]
[331782688,1720762138320,-273.90957045,0.00013681,2]
[331782689,1720762138346,-170.81539734,0.00013681,2]
[331782690,1720762138369,-324.93960871,0.00013682,2]
[331782691,1720762138394,-1243.741,0.00013683,2]
[331782692,1720762138419,-5536.7246,0.00013683,2]
[331782693,1720762138442,-3370.76382062,0.00013683,2]
[331782694,1720762140711,153.78,0.00010959,2]
[331782695,1720762151405,768.9,0.00010959,2]
[331782698,1720762189065,352.76,0.00010921,2]
[331782702,1720762232304,-352.76,0.00013185,2]
[331782703,1720762232315,-2135.56184878,0.00013239,2]
[331782704,1720762232327,-758.43815122,0.00013239,2]
[331782705,1720762232336,-1042.37546399,0.00013283,2]
[331782706,1720762232345,-319.28013051,0.00013283,2]
[331782707,1720762232355,-189.23214208,0.00013283,2]
[331782708,1720762232382,-499.2998041,0.00013283,2]
[331782709,1720762232393,-1453.10266255,0.00013283,2]
[331782710,1720762232402,-298.92027799,0.000135,2]
[331782711,1720762232411,-319.28353567,0.00013516,2]
[331782712,1720762232422,-264.7511771,0.00013543,2]
[331782713,1720762232431,-155.0,0.00013574,2]
[331782714,1720762232441,-242.7045,0.00013583,2]
[331782715,1720762232451,-1518.24169407,0.00013583,2]
[331782716,1720762232462,-3212.99615262,0.00013583,2]
[331782717,1720762232479,-578.5596183,0.00013583,2]
[331782718,1720762232501,-226.92713501,0.00013583,2]
[331782719,1720762232510,-170.81539734,0.00013681,2]
[331782720,1720762232520,-273.90957045,0.00013681,2]
[331782721,1720762232529,-1548.347896,0.00013682,2]
[331782722,1720762232540,-617.175604,0.00013682,2]
[331782723,1720762232549,-322.33644572,0.00013682,2]
[331782724,1720762232559,-150.0,0.00013682,2]
[331782725,1720762232573,-553.05985852,0.00013683,2]
[331782726,1720762232584,-152853.80552086,0.00013683,2]
[331782727,1720762232594,-5000.0,0.000137,2]
[331782728,1720762232603,-220.22,0.00013726,2]
[331782729,1720762232613,-154.89104,0.0001375,2]
[331782730,1720762232622,-500.0,0.00013779,2]
[331782731,1720762232631,-500.0,0.00013779,2]
[331782732,1720762232640,-500.0,0.00013779,2]
[331782733,1720762232650,-500.0,0.00013779,2]
[331782734,1720762232662,-500.0,0.00013779,2]
[331782735,1720762232672,-636.2,0.00013779,2]
[331782736,1720762232683,-763.65,0.00013779,2]
[331782737,1720762232695,-500.0,0.00013779,2]
[331782738,1720762232706,-563.97,0.00013779,2]
[331782739,1720762232718,-500.0,0.00013779,2]
[331782740,1720762232731,-910.81,0.00013779,2]
[331782741,1720762232741,-1620.13,0.00013779,2]
[331782742,1720762232751,-500.0,0.00013779,2]
[331782743,1720762232761,-524.4,0.00013779,2]
[331782744,1720762232774,-500.0,0.00013779,2]
[331782745,1720762232785,-1086.0,0.00013779,2]
[331782746,1720762232795,-500.0,0.00013779,2]
[331782747,1720762232806,-534.65,0.00013779,2]
[331782748,1720762232818,-1140.52,0.00013779,2]
[331782749,1720762232827,-500.0,0.00013779,2]
[331782750,1720762232838,-758.6,0.00013779,2]
[331782751,1720762232848,-500.0,0.00013779,2]
[331782752,1720762232859,-780.36,0.00013779,2]
[331782753,1720762232871,-500.44,0.00013779,2]
[331782754,1720762232881,-870.9,0.00013779,2]
[331782755,1720762232892,-500.0,0.00013779,2]
[331782756,1720762232903,-500.0,0.00013779,2]
[331782757,1720762232914,-500.0,0.00013779,2]
[331782758,1720762232923,-500.0,0.00013779,2]
[331782759,1720762232932,-500.0,0.00013779,2]
[331782760,1720762232942,-500.0,0.00013779,2]
[331782761,1720762232951,-500.0,0.00013779,2]
[331782762,1720762232961,-3679.66,0.00013779,2]
[331782763,1720762232970,-500.0,0.00013779,2]
[331782764,1720762232979,-500.0,0.00013779,2]
[331782765,1720762232988,-500.0,0.00013779,2]
[331782766,1720762232997,-500.0,0.00013779,2]
[331782767,1720762233006,-500.0,0.00013779,2]
[331782768,1720762233016,-500.0,0.00013779,2]
[331782769,1720762233025,-621.83,0.00013779,2]
[331782770,1720762233034,-500.0,0.00013779,2]
[331782771,1720762233044,-500.0,0.00013779,2]
[331782772,1720762233053,-500.0,0.00013779,2]
[331782773,1720762233063,-500.0,0.0001378,2]
[331782774,1720762233072,-500.0,0.0001378,2]
[331782775,1720762233082,-222.19387537,0.0001378,2]
[331782776,1720762233091,-154.96536798,0.0001378,2]
[331782777,1720762233100,-500.0,0.0001378,2]
[331782778,1720762233109,-500.0,0.0001378,2]
[331782779,1720762233119,-500.0,0.0001378,2]
[331782780,1720762233128,-500.0,0.0001378,2]
[331782781,1720762233137,-500.0,0.0001378,2]
[331782782,1720762233147,-500.0,0.0001378,2]
[331782783,1720762233156,-500.0,0.0001378,2]
[331782784,1720762233166,-206.82106144,0.0001378,2]
[331782785,1720762233175,-500.0,0.0001378,2]
[331782786,1720762233184,-500.0,0.0001378,2]
[331782787,1720762233193,-500.0,0.0001378,2]
[331782788,1720762233203,-500.0,0.0001378,2]
[331782789,1720762233213,-180.74396676,0.0001378,2]
[331782790,1720762233222,-500.0,0.0001378,2]
[331782791,1720762233232,-415.51823682,0.0001378,2]
[331782792,1720762233242,-500.0,0.0001378,2]
[331782793,1720762233251,-537.57048977,0.0001378,2]
[331782794,1720762233261,-420.26679192,0.0001378,2]
[331782795,1720762233273,-79.73320808,0.0001378,2]
[331782796,1720762233283,-500.0,0.0001378,2]
[331782797,1720762233292,-500.0,0.0001378,2]
[331782798,1720762233301,-500.0,0.0001378,2]
[331782799,1720762233312,-500.0,0.0001378,2]
[331782800,1720762233321,-47.05225286,0.0001378,2]
[331782801,1720762233333,-452.94774714,0.0001378,2]
[331782802,1720762233345,-500.0,0.0001378,2]
[331782803,1720762233354,-500.0,0.0001378,2]
[331782804,1720762233364,-500.0,0.0001378,2]
[331782805,1720762233378,-173.09931319,0.0001378,2]
[331782806,1720762233387,-163.22080275,0.0001378,2]
[331782807,1720762233399,-305.60759872,0.0001378,2]
[331782808,1720762233409,-500.0,0.0001378,2]
[331782809,1720762233418,-377.64900833,0.0001378,2]
[331782810,1720762233430,-122.35099167,0.0001378,2]
[331782811,1720762233439,-500.0,0.0001378,2]
[331782812,1720762233448,-500.0,0.0001378,2]
[331782813,1720762233458,-500.0,0.0001378,2]
[331782814,1720762233468,-500.0,0.0001378,2]
[331782815,1720762233477,-500.0,0.0001378,2]
[331782816,1720762233487,-48.00035236,0.0001378,2]
[331782817,1720762233516,-330.75563745,0.00013283,2]
[331782818,1720762233526,-57.95392119,0.0001378,2]
[331782819,1720762233566,-434.04662089,0.0001378,2]
[331782820,1720762233576,-500.0,0.0001378,2]
[331782821,1720762233586,-99.65337911,0.0001378,2]
[331782822,1720762233609,-181.51876352,0.0001378,2]
[331782823,1720762233618,-500.0,0.0001378,2]
[331782824,1720762233627,-150.14325374,0.0001378,2]
[331782839,1720762238262,-500.0,0.00013779,2]
[331782840,1720762238273,-500.0,0.00013779,2]
[331782841,1720762238282,-274.25252714,0.00013779,2]
[331782842,1720762238295,-225.74747286,0.00013779,2]
[331782843,1720762238306,-500.0,0.00013779,2]
[331782844,1720762238318,-626.95,0.00013779,2]
[331782845,1720762238327,-500.0,0.00013779,2]
[331782846,1720762238337,-349.85674626,0.0001378,2]
[331782847,1720762238346,-500.0,0.0001378,2]
[331782848,1720762238355,-505.12,0.0001378,2]
[331782849,1720762238365,-500.0,0.0001378,2]
[331782850,1720762238379,-8.05971935,0.0001378,2]
[331782851,1720762238391,-491.94028065,0.0001378,2]
[331782852,1720762238400,-500.0,0.0001378,2]
[331782853,1720762238409,-500.0,0.0001378,2]
[331782854,1720762238419,-500.0,0.0001378,2]
[331782855,1720762238428,-915.14,0.0001378,2]
[331782856,1720762238437,-500.0,0.0001378,2]
[331782857,1720762238446,-271.87318817,0.0001378,2]
[331782858,1720762238457,-500.0,0.0001378,2]
[331782859,1720762238467,-500.0,0.0001378,2]
[331782860,1720762238476,-535.98,0.0001378,2]
[331782861,1720762238485,-1546.67,0.0001378,2]
[331782862,1720762238495,-500.0,0.0001378,2]
[331782863,1720762238504,-500.0,0.0001378,2]
[331782864,1720762238514,-500.0,0.0001378,2]
[331782865,1720762238523,-556.4,0.0001378,2]
[331782866,1720762238533,-500.0,0.0001378,2]
[331782867,1720762238543,-500.0,0.0001378,2]
[331782868,1720762238553,-500.0,0.0001378,2]
[331782869,1720762238562,-907.24,0.0001378,2]
[331782870,1720762238575,-500.0,0.0001378,2]
[331782871,1720762238584,-500.0,0.0001378,2]
[331782872,1720762238594,-500.0,0.0001378,2]
[331782873,1720762238603,-500.0,0.0001378,2]
[331782874,1720762238612,-500.0,0.0001378,2]
[331782875,1720762238622,-500.0,0.0001378,2]
[331782876,1720762238631,-500.0,0.0001378,2]
[331782877,1720762238641,-500.0,0.0001378,2]
[331782878,1720762238650,-789.07,0.0001378,2]
[331782879,1720762238660,-500.0,0.0001378,2]
[331782880,1720762238669,-500.0,0.0001378,2]
[331782881,1720762238679,-500.0,0.0001378,2]
[331782882,1720762238688,-500.0,0.0001378,2]
[331782884,1720762238697,-500.0,0.0001378,2]
[331782886,1720762238706,-776.86,0.0001378,2]
[331782887,1720762238715,-713.08,0.0001378,2]
[331782888,1720762238725,-500.0,0.0001378,2]
[331782889,1720762238737,-500.0,0.0001378,2]
[331782890,1720762238747,-500.0,0.0001378,2]
[331782891,1720762238756,-6829.54,0.0001378,2]
[331782892,1720762238766,-500.0,0.0001378,2]
[331782893,1720762238775,-500.0,0.0001378,2]
[331782894,1720762238784,-1803.56,0.0001378,2]